[Event "Early-Titled-Tuesday-Blitz-April-02-2024"]
[Site "Chess.com"]
[Date "2024.04.02"]
[Round "8"]
[White "atalz0"]
[Black "Likvidator228"]
[Result "1-0"]
[WhiteElo "2404"]
[BlackElo "2554"]
[TimeControl "180+1"]
[EndTime "9:25:59 PDT"]
[Termination "atalz0 won by resignation"]

1. d4 {[%clk 0:03:00.9]} 1... f5 {[%clk 0:02:59.9]} 2. g3 {[%clk 0:03:00.5]}
2... Nf6 {[%clk 0:03:00.1]} 3. Bg2 {[%clk 0:03:00.9]} 3... g6 {[%clk 0:03:00.1]}
4. Nh3 {[%clk 0:03:00.5]} 4... Bg7 {[%clk 0:03:00.2]} 5. c4 {[%clk 0:03:01]}
5... O-O {[%clk 0:03:00.5]} 6. Nc3 {[%clk 0:03:01.2]} 6... d6 {[%clk 0:03:00.9]}
7. d5 {[%clk 0:03:01.7]} 7... c6 {[%clk 0:02:59]} 8. O-O {[%clk 0:03:00.8]} 8...
e5 {[%clk 0:02:57.9]} 9. dxe6 {[%clk 0:02:59.9]} 9... Bxe6 {[%clk 0:02:57.9]}
10. Qb3 {[%clk 0:02:59.4]} 10... b5 {[%clk 0:02:08.3]} 11. Nxb5 {[%clk
0:02:53.1]} 11... cxb5 {[%clk 0:02:08.6]} 12. Bxa8 {[%clk 0:02:52.1]} 12... bxc4
{[%clk 0:02:09.1]} 13. Qe3 {[%clk 0:02:42.1]} 13... Bd5 {[%clk 0:02:04.4]} 14.
Bxd5+ {[%clk 0:02:19.4]} 14... Nxd5 {[%clk 0:02:02.9]} 15. Qe6+ {[%clk
0:02:17.4]} 15... Rf7 {[%clk 0:02:03.2]} 16. Qxd5 {[%clk 0:02:17.6]} 16... h6
{[%clk 0:02:01.3]} 17. Rd1 {[%clk 0:02:11.2]} 17... Bf8 {[%clk 0:01:41.9]} 18.
Nf4 {[%clk 0:02:07.2]} 18... Qf6 {[%clk 0:01:39.2]} 19. Qxc4 {[%clk 0:01:56.3]}
19... Kh7 {[%clk 0:01:37.4]} 20. Qe6 {[%clk 0:01:50.9]} 20... Qg7 {[%clk
0:01:36.7]} 21. Be3 {[%clk 0:01:44.2]} 21... Nc6 {[%clk 0:01:35.6]} 22. Rac1
{[%clk 0:01:33.8]} 22... Ne5 {[%clk 0:01:35.4]} 23. Bd4 {[%clk 0:01:30.2]} 23...
Re7 {[%clk 0:01:35.6]} 24. Qd5 {[%clk 0:01:25.6]} 24... g5 {[%clk 0:01:33.4]}
25. Ne6 {[%clk 0:01:22.8]} 25... Qf7 {[%clk 0:01:28.6]} 26. Nxf8+ {[%clk
0:01:18.9]} 26... Qxf8 {[%clk 0:01:28.3]} 27. Qxd6 {[%clk 0:01:16.5]} 27... Ng4
{[%clk 0:01:26.7]} 28. Rc7 {[%clk 0:01:12.4]} 1-0

[Event "Early-Titled-Tuesday-Blitz-April-02-2024"]
[Site "Chess.com"]
[Date "2024.04.02"]
[Round "8"]
[White "Yushko_Olga"]
[Black "dosto07"]
[Result "1-0"]
[WhiteElo "2268"]
[BlackElo "2439"]
[TimeControl "180+1"]
[EndTime "9:25:59 PDT"]
[Termination "Yushko_Olga won by resignation"]

1. d4 {[%clk 0:02:58.6]} 1... d5 {[%clk 0:02:54.4]} 2. c4 {[%clk 0:02:59.1]}
2... dxc4 {[%clk 0:02:54.1]} 3. e3 {[%clk 0:02:59.1]} 3... Nf6 {[%clk
0:02:54.4]} 4. Bxc4 {[%clk 0:02:59.9]} 4... e6 {[%clk 0:02:55.3]} 5. Nf3 {[%clk
0:03:00.3]} 5... c5 {[%clk 0:02:56.2]} 6. O-O {[%clk 0:03:00]} 6... a6 {[%clk
0:02:56.9]} 7. Be2 {[%clk 0:02:55.6]} 7... Nc6 {[%clk 0:02:55.6]} 8. Nc3 {[%clk
0:02:54.5]} 8... cxd4 {[%clk 0:02:53.3]} 9. exd4 {[%clk 0:02:53.3]} 9... Be7
{[%clk 0:02:52.5]} 10. Bg5 {[%clk 0:02:52.1]} 10... O-O {[%clk 0:02:51.8]} 11.
Rc1 {[%clk 0:02:49.5]} 11... Bd7 {[%clk 0:02:46.7]} 12. Ne5 {[%clk 0:02:47.6]}
12... Nb4 {[%clk 0:02:34]} 13. Bf3 {[%clk 0:02:44]} 13... Nbd5 {[%clk
0:02:19.5]} 14. Nxd5 {[%clk 0:02:41.2]} 14... Nxd5 {[%clk 0:02:18.5]} 15. Bxd5
{[%clk 0:02:39.1]} 15... Bxg5 {[%clk 0:02:16.8]} 16. Bxb7 {[%clk 0:02:33.8]}
16... Rb8 {[%clk 0:02:03.8]} 17. Nxd7 {[%clk 0:02:33.2]} 17... Rxb7 {[%clk
0:01:53.4]} 18. Nxf8 {[%clk 0:02:32.9]} 18... Bxc1 {[%clk 0:01:53.5]} 19. Nxe6
{[%clk 0:02:26.6]} 19... fxe6 {[%clk 0:01:52.1]} 20. Qxc1 {[%clk 0:02:26.2]}
20... Qd5 {[%clk 0:01:37.9]} 21. b3 {[%clk 0:02:21.9]} 21... Rd7 {[%clk
0:01:36.8]} 22. Qc8+ {[%clk 0:02:11.4]} 22... Kf7 {[%clk 0:01:36.9]} 23. Qxa6
{[%clk 0:02:11.3]} 23... Qxd4 {[%clk 0:01:37.3]} 24. h3 {[%clk 0:02:10.2]} 24...
e5 {[%clk 0:01:34.5]} 25. Re1 {[%clk 0:02:06.3]} 25... e4 {[%clk 0:01:31.9]} 26.
Qc6 {[%clk 0:02:03.8]} 26... Re7 {[%clk 0:01:29.5]} 27. Re3 {[%clk 0:02:01.2]}
27... Qa1+ {[%clk 0:01:25.9]} 28. Kh2 {[%clk 0:02:01.2]} 28... Qxa2 {[%clk
0:01:26.4]} 29. Qd5+ {[%clk 0:01:59.7]} 29... Kf8 {[%clk 0:01:22.9]} 30. Qd8+
{[%clk 0:01:57.2]} 30... Kf7 {[%clk 0:01:22.6]} 31. Qd5+ {[%clk 0:01:56]} 31...
Kf8 {[%clk 0:01:22.8]} 32. Qf5+ {[%clk 0:01:54.6]} 32... Kg8 {[%clk 0:01:21.5]}
33. Rc3 {[%clk 0:01:44.7]} 33... Qa8 {[%clk 0:01:14.6]} 34. Rc8+ {[%clk
0:01:43.5]} 34... Re8 {[%clk 0:01:15.1]} 35. Rxa8 {[%clk 0:01:43.4]} 35... Rxa8
{[%clk 0:01:16]} 36. Qxe4 {[%clk 0:01:43.8]} 1-0

[Event "Early-Titled-Tuesday-Blitz-April-02-2024"]
[Site "Chess.com"]
[Date "2024.04.02"]
[Round "8"]
[White "ilqar_74"]
[Black "Zq1"]
[Result "1-0"]
[WhiteElo "2809"]
[BlackElo "2616"]
[TimeControl "180+1"]
[EndTime "9:26:14 PDT"]
[Termination "ilqar_74 won by resignation"]

1. e4 {[%clk 0:03:00.9]} 1... c5 {[%clk 0:02:59.1]} 2. Nf3 {[%clk 0:02:58.6]}
2... d6 {[%clk 0:02:58.1]} 3. d4 {[%clk 0:02:58.5]} 3... cxd4 {[%clk 0:02:57.9]}
4. Nxd4 {[%clk 0:02:59.4]} 4... Nf6 {[%clk 0:02:56.9]} 5. Nc3 {[%clk 0:02:59.8]}
5... Nc6 {[%clk 0:02:56.9]} 6. Be2 {[%clk 0:02:55.3]} 6... g6 {[%clk 0:02:55.6]}
7. Be3 {[%clk 0:02:53.1]} 7... Bg7 {[%clk 0:02:55.1]} 8. Qd2 {[%clk 0:02:53.3]}
8... a6 {[%clk 0:02:47.7]} 9. O-O-O {[%clk 0:02:51.1]} 9... O-O {[%clk
0:02:45.5]} 10. h4 {[%clk 0:02:50.9]} 10... h5 {[%clk 0:02:37.9]} 11. f3 {[%clk
0:02:50.7]} 11... Nxd4 {[%clk 0:02:30.6]} 12. Bxd4 {[%clk 0:02:50.7]} 12... Be6
{[%clk 0:02:30.3]} 13. g4 {[%clk 0:02:48.9]} 13... hxg4 {[%clk 0:02:26.5]} 14.
h5 {[%clk 0:02:49.3]} 14... gxh5 {[%clk 0:02:18.7]} 15. Qg5 {[%clk 0:02:37]}
15... Rc8 {[%clk 0:02:04.4]} 16. fxg4 {[%clk 0:02:33.3]} 16... Bxg4 {[%clk
0:01:25.4]} 17. Bxg4 {[%clk 0:01:59.1]} 17... hxg4 {[%clk 0:01:21.6]} 18. Bxf6
{[%clk 0:01:52.3]} 18... exf6 {[%clk 0:01:19.1]} 19. Qxg4 {[%clk 0:01:52.3]}
19... Rxc3 {[%clk 0:01:11.8]} 20. Rdg1 {[%clk 0:01:31.3]} 20... Rxc2+ {[%clk
0:01:11.7]} 21. Kxc2 {[%clk 0:01:26.9]} 21... Qc8+ {[%clk 0:01:10.2]} 22. Kd3
{[%clk 0:01:23.6]} 22... Qxg4 {[%clk 0:01:02.1]} 23. Rxg4 {[%clk 0:01:24.5]} 1-0

[Event "Early-Titled-Tuesday-Blitz-April-02-2024"]
[Site "Chess.com"]
[Date "2024.04.02"]
[Round "8"]
[White "Manukyan_Artak"]
[Black "nekotyanof"]
[Result "1-0"]
[WhiteElo "2567"]
[BlackElo "2661"]
[TimeControl "180+1"]
[EndTime "9:26:14 PDT"]
[Termination "Manukyan_Artak won by resignation"]

1. e4 {[%clk 0:03:00.9]} 1... Nf6 {[%clk 0:02:59.3]} 2. Nc3 {[%clk 0:03:00.4]}
2... d5 {[%clk 0:02:59.5]} 3. exd5 {[%clk 0:03:00]} 3... Nxd5 {[%clk 0:02:59.7]}
4. Bc4 {[%clk 0:03:00.2]} 4... Nb6 {[%clk 0:02:58.5]} 5. Bb3 {[%clk 0:02:59.8]}
5... e6 {[%clk 0:02:58.9]} 6. d4 {[%clk 0:02:57.1]} 6... Be7 {[%clk 0:02:58.6]}
7. Nf3 {[%clk 0:02:46.8]} 7... O-O {[%clk 0:02:57]} 8. h4 {[%clk 0:02:42.7]}
8... Nc6 {[%clk 0:02:56.5]} 9. Bg5 {[%clk 0:02:41.6]} 9... h6 {[%clk 0:02:55.7]}
10. Bxe7 {[%clk 0:02:41.3]} 10... Qxe7 {[%clk 0:02:56.6]} 11. Qe2 {[%clk
0:02:41.3]} 11... a5 {[%clk 0:02:54]} 12. a3 {[%clk 0:02:40.8]} 12... a4 {[%clk
0:02:53.5]} 13. Ba2 {[%clk 0:02:40.9]} 13... Qf6 {[%clk 0:02:53.8]} 14. O-O-O
{[%clk 0:02:39.8]} 14... Ra5 {[%clk 0:02:50.4]} 15. Ne4 {[%clk 0:02:39]} 15...
Qf4+ {[%clk 0:02:50]} 16. Kb1 {[%clk 0:02:39]} 16... Rd8 {[%clk 0:02:49]} 17. g3
{[%clk 0:02:09.8]} 17... Qf5 {[%clk 0:02:47.5]} 18. g4 {[%clk 0:02:03.6]} 18...
Qf4 {[%clk 0:02:45.6]} 19. g5 {[%clk 0:02:04]} 19... Rf5 {[%clk 0:02:37.9]} 20.
Nfd2 {[%clk 0:01:55.4]} 20... Nxd4 {[%clk 0:02:35.1]} 21. Qe1 {[%clk 0:01:53]}
21... Bd7 {[%clk 0:02:27.8]} 22. gxh6 {[%clk 0:01:43]} 22... Bc6 {[%clk
0:02:19]} 23. hxg7 {[%clk 0:01:35.4]} 23... Rd7 {[%clk 0:01:50.8]} 24. h5 {[%clk
0:01:28.1]} 24... Nf3 {[%clk 0:01:45.9]} 25. h6 {[%clk 0:01:21.1]} 25... Kh7
{[%clk 0:01:32.1]} 26. Nxf3 {[%clk 0:01:15.4]} 26... Qxf3 {[%clk 0:01:27.8]} 27.
Rxd7 {[%clk 0:01:08.7]} 27... Nxd7 {[%clk 0:01:28.7]} 28. Rg1 {[%clk 0:01:00.9]}
1-0

[Event "Early-Titled-Tuesday-Blitz-April-02-2024"]
[Site "Chess.com"]
[Date "2024.04.02"]
[Round "8"]
[White "smotherhubbard"]
[Black "SharapovEvgeny"]
[Result "0-1"]
[WhiteElo "2367"]
[BlackElo "2562"]
[TimeControl "180+1"]
[EndTime "9:26:18 PDT"]
[Termination "SharapovEvgeny won by checkmate"]

1. d4 {[%clk 0:03:00.9]} 1... d5 {[%clk 0:02:58]} 2. c4 {[%clk 0:03:00.2]} 2...
c6 {[%clk 0:02:58.6]} 3. Nf3 {[%clk 0:02:58.4]} 3... Nf6 {[%clk 0:02:58.9]} 4.
e3 {[%clk 0:02:58.3]} 4... Bg4 {[%clk 0:02:58.3]} 5. Qb3 {[%clk 0:02:56.7]} 5...
Qb6 {[%clk 0:02:54.4]} 6. Ne5 {[%clk 0:02:56.3]} 6... Be6 {[%clk 0:02:53.9]} 7.
Qc2 {[%clk 0:02:55.5]} 7... g6 {[%clk 0:02:52.1]} 8. b3 {[%clk 0:02:55]} 8...
Bg7 {[%clk 0:02:51.9]} 9. Ba3 {[%clk 0:02:50.8]} 9... Nbd7 {[%clk 0:02:45.9]}
10. Nxd7 {[%clk 0:02:38.2]} 10... Nxd7 {[%clk 0:02:42.7]} 11. Nd2 {[%clk
0:02:37.9]} 11... Qa5 {[%clk 0:02:40.3]} 12. Qb2 {[%clk 0:02:32.9]} 12... O-O
{[%clk 0:02:35.9]} 13. Bxe7 {[%clk 0:02:31.3]} 13... Rfe8 {[%clk 0:02:35.9]} 14.
Bh4 {[%clk 0:02:24.8]} 14... c5 {[%clk 0:02:35.5]} 15. O-O-O {[%clk 0:02:13.6]}
15... cxd4 {[%clk 0:02:29.6]} 16. exd4 {[%clk 0:02:12.4]} 16... Rac8 {[%clk
0:02:24.4]} 17. Kb1 {[%clk 0:02:10.9]} 17... Nb6 {[%clk 0:02:15.9]} 18. c5
{[%clk 0:02:03.4]} 18... Nd7 {[%clk 0:02:14.5]} 19. b4 {[%clk 0:01:50.4]} 19...
Bf5+ {[%clk 0:02:12]} 20. Kc1 {[%clk 0:01:36.3]} 20... Qc7 {[%clk 0:02:09.2]}
21. Nb3 {[%clk 0:01:28.6]} 21... b6 {[%clk 0:02:08.3]} 22. Ba6 {[%clk 0:01:28]}
22... bxc5 {[%clk 0:02:03.5]} 23. Bxc8 {[%clk 0:01:20.8]} 23... cxb4+ {[%clk
0:02:03.5]} 24. Nc5 {[%clk 0:00:53.8]} 24... Nxc5 {[%clk 0:01:55]} 25. Bxf5
{[%clk 0:00:48.7]} 25... Nd3+ {[%clk 0:01:54.8]} 26. Kb1 {[%clk 0:00:42.3]}
26... Nxb2 {[%clk 0:01:54.7]} 27. Bc2 {[%clk 0:00:32.9]} 27... Nc4 {[%clk
0:01:51.2]} 28. Bb3 {[%clk 0:00:31.5]} 28... Na3+ {[%clk 0:01:49.8]} 29. Ka1
{[%clk 0:00:26.2]} 29... Qc3# {[%clk 0:01:49.1]} 0-1

[Event "Early-Titled-Tuesday-Blitz-April-02-2024"]
[Site "Chess.com"]
[Date "2024.04.02"]
[Round "8"]
[White "diamonds13"]
[Black "Orphanator2009"]
[Result "0-1"]
[WhiteElo "2353"]
[BlackElo "2526"]
[TimeControl "180+1"]
[EndTime "9:26:20 PDT"]
[Termination "Orphanator2009 won on time"]

1. d4 {[%clk 0:03:00.9]} 1... Nf6 {[%clk 0:02:53.4]} 2. c4 {[%clk 0:03:00.5]}
2... e6 {[%clk 0:02:52.3]} 3. Nc3 {[%clk 0:02:33.1]} 3... Bb4 {[%clk 0:02:48.6]}
4. Qb3 {[%clk 0:02:32.6]} 4... Nc6 {[%clk 0:02:41.7]} 5. e3 {[%clk 0:02:31.8]}
5... d6 {[%clk 0:02:39.9]} 6. a3 {[%clk 0:02:29.4]} 6... Bxc3+ {[%clk
0:02:39.5]} 7. Qxc3 {[%clk 0:02:29.2]} 7... e5 {[%clk 0:02:39.5]} 8. d5 {[%clk
0:02:28.6]} 8... Nb8 {[%clk 0:02:38.4]} 9. Bd3 {[%clk 0:02:21.9]} 9... O-O
{[%clk 0:02:36.8]} 10. Ne2 {[%clk 0:02:19.2]} 10... a5 {[%clk 0:02:35.5]} 11. b3
{[%clk 0:02:17.8]} 11... b6 {[%clk 0:02:31.9]} 12. Ng3 {[%clk 0:02:16.7]} 12...
Nbd7 {[%clk 0:02:30.8]} 13. O-O {[%clk 0:02:09.1]} 13... Re8 {[%clk 0:02:26.8]}
14. b4 {[%clk 0:02:00.7]} 14... axb4 {[%clk 0:02:25.8]} 15. axb4 {[%clk
0:02:00.3]} 15... Rxa1 {[%clk 0:02:26.7]} 16. Qxa1 {[%clk 0:01:59.8]} 16... Bb7
{[%clk 0:02:16.5]} 17. Bf5 {[%clk 0:01:15.2]} 17... b5 {[%clk 0:02:08.9]} 18.
cxb5 {[%clk 0:01:14]} 18... Bxd5 {[%clk 0:02:07]} 19. Rd1 {[%clk 0:01:13.5]}
19... Qa8 {[%clk 0:02:01.4]} 20. e4 {[%clk 0:01:11.5]} 20... Qxa1 {[%clk
0:01:59.9]} 21. exd5 {[%clk 0:01:03.8]} 21... Nb6 {[%clk 0:01:57.6]} 0-1

[Event "Early-Titled-Tuesday-Blitz-April-02-2024"]
[Site "Chess.com"]
[Date "2024.04.02"]
[Round "8"]
[White "GMAneta"]
[Black "DonCiao"]
[Result "1-0"]
[WhiteElo "2489"]
[BlackElo "2011"]
[TimeControl "180+1"]
[EndTime "9:26:23 PDT"]
[Termination "GMAneta won by checkmate"]

1. d4 {[%clk 0:03:00.8]} 1... Nf6 {[%clk 0:02:59.4]} 2. Nf3 {[%clk 0:03:00.6]}
2... g6 {[%clk 0:02:59.6]} 3. g3 {[%clk 0:03:00.4]} 3... Bg7 {[%clk 0:02:58.8]}
4. Bg2 {[%clk 0:03:01.3]} 4... d5 {[%clk 0:02:58.8]} 5. c4 {[%clk 0:03:02.2]}
5... dxc4 {[%clk 0:02:58.3]} 6. Na3 {[%clk 0:03:01.5]} 6... c3 {[%clk
0:02:53.2]} 7. bxc3 {[%clk 0:02:58.9]} 7... c5 {[%clk 0:02:51.3]} 8. O-O {[%clk
0:02:57.7]} 8... O-O {[%clk 0:02:50.9]} 9. e3 {[%clk 0:02:57.9]} 9... Nd5 {[%clk
0:02:48.2]} 10. Bb2 {[%clk 0:02:57.8]} 10... Nc6 {[%clk 0:02:46.7]} 11. Qe2
{[%clk 0:02:57.6]} 11... Nb6 {[%clk 0:02:36.7]} 12. Rfd1 {[%clk 0:02:55.3]}
12... Na4 {[%clk 0:02:25.7]} 13. Nc4 {[%clk 0:02:53]} 13... Nxb2 {[%clk
0:02:21.7]} 14. Qxb2 {[%clk 0:02:51.7]} 14... Be6 {[%clk 0:02:18.2]} 15. Qxb7
{[%clk 0:02:50.5]} 15... Bxc4 {[%clk 0:01:46.8]} 16. Qxc6 {[%clk 0:02:48.8]}
16... Rc8 {[%clk 0:01:46.4]} 17. Qb7 {[%clk 0:02:45.8]} 17... Qa5 {[%clk
0:01:41.6]} 18. Qxe7 {[%clk 0:02:43.3]} 18... Qxc3 {[%clk 0:01:40.7]} 19. Rac1
{[%clk 0:02:42.7]} 19... Qb4 {[%clk 0:01:33.4]} 20. a3 {[%clk 0:02:42.6]} 20...
Qa4 {[%clk 0:01:26]} 21. dxc5 {[%clk 0:02:40.2]} 21... Be2 {[%clk 0:01:23.7]}
22. Rd7 {[%clk 0:02:37.1]} 22... Qxa3 {[%clk 0:01:19.1]} 23. Rb1 {[%clk
0:02:32.7]} 23... Qxc5 {[%clk 0:01:16.7]} 24. Rxa7 {[%clk 0:02:28.8]} 24... Qc1+
{[%clk 0:01:04.9]} 25. Rxc1 {[%clk 0:02:27.2]} 25... Rxc1+ {[%clk 0:01:04.6]}
26. Bf1 {[%clk 0:02:27.6]} 26... Bxf1 {[%clk 0:01:04.1]} 27. h4 {[%clk
0:02:22.7]} 27... Be2+ {[%clk 0:00:33.1]} 28. Kg2 {[%clk 0:02:17.3]} 28... Bf1+
{[%clk 0:00:22.2]} 29. Kh2 {[%clk 0:02:16.3]} 29... h5 {[%clk 0:00:22.3]} 30.
Ng5 {[%clk 0:02:15.2]} 30... Bb5 {[%clk 0:00:17.1]} 31. Nxf7 {[%clk 0:02:14]}
31... Bc6 {[%clk 0:00:16.1]} 32. Nh6+ {[%clk 0:02:13.6]} 32... Kh8 {[%clk
0:00:10.5]} 33. Qxg7# {[%clk 0:02:12]} 1-0

[Event "Early-Titled-Tuesday-Blitz-April-02-2024"]
[Site "Chess.com"]
[Date "2024.04.02"]
[Round "8"]
[White "AlphaGoosee"]
[Black "manitodeplomo"]
[Result "1-0"]
[WhiteElo "2548"]
[BlackElo "2649"]
[TimeControl "180+1"]
[EndTime "9:26:25 PDT"]
[Termination "AlphaGoosee won by resignation"]

1. e4 {[%clk 0:03:00.9]} 1... c5 {[%clk 0:02:44.8]} 2. Nf3 {[%clk 0:03:01.4]}
2... e6 {[%clk 0:02:44.4]} 3. d4 {[%clk 0:03:02]} 3... cxd4 {[%clk 0:02:45.3]}
4. Nxd4 {[%clk 0:03:02.9]} 4... a6 {[%clk 0:02:45.8]} 5. Nc3 {[%clk 0:03:03]}
5... b5 {[%clk 0:02:44.5]} 6. Bd3 {[%clk 0:03:02.1]} 6... Qb6 {[%clk 0:02:43.3]}
7. Nf3 {[%clk 0:03:02.7]} 7... Bb7 {[%clk 0:02:41.8]} 8. O-O {[%clk 0:03:02.6]}
8... d6 {[%clk 0:02:39.1]} 9. a4 {[%clk 0:02:51.3]} 9... b4 {[%clk 0:02:36]} 10.
a5 {[%clk 0:02:51.7]} 10... Qc7 {[%clk 0:02:34.6]} 11. Na4 {[%clk 0:02:52]}
11... Qxa5 {[%clk 0:02:31.3]} 12. Be3 {[%clk 0:02:50.6]} 12... Qc7 {[%clk
0:02:16.1]} 13. Nb6 {[%clk 0:02:48.7]} 13... a5 {[%clk 0:02:06.8]} 14. Nxa8
{[%clk 0:02:47.6]} 14... Bxa8 {[%clk 0:02:07.7]} 15. Bb5+ {[%clk 0:02:32.6]}
15... Bc6 {[%clk 0:02:03.9]} 16. Nd4 {[%clk 0:02:21.8]} 16... Nf6 {[%clk
0:01:37.9]} 17. Nxc6 {[%clk 0:01:59.2]} 17... Nxc6 {[%clk 0:01:38.8]} 18. Qd4
{[%clk 0:01:49.4]} 18... Be7 {[%clk 0:01:32.6]} 19. Qc4 {[%clk 0:01:46.3]} 19...
Kd7 {[%clk 0:01:27.6]} 20. Rxa5 {[%clk 0:01:42.8]} 20... d5 {[%clk 0:00:21.6]}
21. Bxc6+ {[%clk 0:01:39.3]} 21... Qxc6 {[%clk 0:00:20.3]} 22. Ra7+ {[%clk
0:01:39.1]} 22... Kd6 {[%clk 0:00:20.1]} 23. e5+ {[%clk 0:01:39.7]} 1-0

[Event "Early-Titled-Tuesday-Blitz-April-02-2024"]
[Site "Chess.com"]
[Date "2024.04.02"]
[Round "8"]
[White "esrosenberg"]
[Black "kereswasbest"]
[Result "0-1"]
[WhiteElo "2454"]
[BlackElo "2263"]
[TimeControl "180+1"]
[EndTime "9:26:27 PDT"]
[Termination "kereswasbest won by resignation"]

1. d4 {[%clk 0:03:00.9]} 1... d5 {[%clk 0:02:59.6]} 2. c4 {[%clk 0:03:01.3]}
2... e6 {[%clk 0:02:59.2]} 3. Nf3 {[%clk 0:02:56]} 3... Be7 {[%clk 0:02:59.4]}
4. g3 {[%clk 0:02:55.5]} 4... Nf6 {[%clk 0:02:59.7]} 5. Bg2 {[%clk 0:02:56]}
5... O-O {[%clk 0:03:00]} 6. O-O {[%clk 0:02:56.6]} 6... c5 {[%clk 0:02:59.2]}
7. Bg5 {[%clk 0:02:24]} 7... cxd4 {[%clk 0:02:53.4]} 8. Nxd4 {[%clk 0:02:19.4]}
8... Nc6 {[%clk 0:02:53.3]} 9. Nxc6 {[%clk 0:02:18.8]} 9... bxc6 {[%clk
0:02:52.5]} 10. Nc3 {[%clk 0:02:17.6]} 10... Ba6 {[%clk 0:02:51.8]} 11. cxd5
{[%clk 0:02:15.6]} 11... cxd5 {[%clk 0:02:50.7]} 12. Re1 {[%clk 0:02:16.2]}
12... h6 {[%clk 0:02:49.6]} 13. Be3 {[%clk 0:02:12]} 13... Rb8 {[%clk
0:02:41.3]} 14. Rb1 {[%clk 0:02:04.4]} 14... Qa5 {[%clk 0:02:32.5]} 15. Bd4
{[%clk 0:01:52]} 15... Rfc8 {[%clk 0:02:24.9]} 16. e3 {[%clk 0:01:51.2]} 16...
Rb7 {[%clk 0:02:18.2]} 17. h4 {[%clk 0:01:36.7]} 17... Rcb8 {[%clk 0:02:14.5]}
18. Qc2 {[%clk 0:01:31.5]} 18... Rc8 {[%clk 0:02:05.7]} 19. g4 {[%clk
0:01:13.3]} 19... Nxg4 {[%clk 0:01:51.6]} 20. Bf3 {[%clk 0:01:04.8]} 20... Nf6
{[%clk 0:01:47]} 21. Kh2 {[%clk 0:01:03.6]} 21... Qc7+ {[%clk 0:01:42.2]} 22.
Kh1 {[%clk 0:01:00.3]} 22... Rb4 {[%clk 0:01:25.6]} 0-1

[Event "Early-Titled-Tuesday-Blitz-April-02-2024"]
[Site "Chess.com"]
[Date "2024.04.02"]
[Round "8"]
[White "BardArtem"]
[Black "Andrey_Klymchuk"]
[Result "1-0"]
[WhiteElo "2854"]
[BlackElo "2717"]
[TimeControl "180+1"]
[EndTime "9:26:34 PDT"]
[Termination "BardArtem won by resignation"]

1. e4 {[%clk 0:03:00.9]} 1... c6 {[%clk 0:02:58.5]} 2. Nf3 {[%clk 0:03:00.2]}
2... d5 {[%clk 0:02:58.8]} 3. exd5 {[%clk 0:03:01.1]} 3... cxd5 {[%clk
0:02:58.8]} 4. Ne5 {[%clk 0:03:01.8]} 4... Nc6 {[%clk 0:02:55.7]} 5. d4 {[%clk
0:03:01.1]} 5... Nxe5 {[%clk 0:02:53.5]} 6. dxe5 {[%clk 0:03:02]} 6... e6 {[%clk
0:02:53]} 7. Nd2 {[%clk 0:03:02.4]} 7... Ne7 {[%clk 0:02:49.1]} 8. Nf3 {[%clk
0:03:02.1]} 8... Nc6 {[%clk 0:02:48.2]} 9. c3 {[%clk 0:03:02.2]} 9... Bc5 {[%clk
0:02:47.3]} 10. Bd3 {[%clk 0:03:01.9]} 10... h6 {[%clk 0:02:47.1]} 11. O-O
{[%clk 0:03:00.9]} 11... Bd7 {[%clk 0:02:47]} 12. Qe2 {[%clk 0:02:53]} 12... a6
{[%clk 0:02:44]} 13. Be3 {[%clk 0:02:52]} 13... Qb6 {[%clk 0:02:40.7]} 14. Bxc5
{[%clk 0:02:47.3]} 14... Qxc5 {[%clk 0:02:41.6]} 15. Rad1 {[%clk 0:02:42.5]}
15... O-O {[%clk 0:02:36.7]} 16. Rfe1 {[%clk 0:02:39]} 16... Rfc8 {[%clk
0:02:35.2]} 17. h3 {[%clk 0:02:34.4]} 17... b5 {[%clk 0:02:29.6]} 18. a3 {[%clk
0:02:31.3]} 18... Rab8 {[%clk 0:02:28.7]} 19. Bb1 {[%clk 0:02:16.1]} 19... Ne7
{[%clk 0:02:19.6]} 20. Nd4 {[%clk 0:02:08.4]} 20... a5 {[%clk 0:02:17.9]} 21.
Qd3 {[%clk 0:01:58.5]} 21... Ng6 {[%clk 0:02:16.3]} 22. Qg3 {[%clk 0:01:55]}
22... Nf8 {[%clk 0:02:14.7]} 23. Nc2 {[%clk 0:01:48.3]} 23... Qb6 {[%clk
0:02:01.2]} 24. Rd4 {[%clk 0:01:46.9]} 24... Rc4 {[%clk 0:02:00.3]} 25. Red1
{[%clk 0:01:43.3]} 25... Ng6 {[%clk 0:01:50.7]} 26. Ne3 {[%clk 0:01:37.2]} 26...
Rxd4 {[%clk 0:01:49.5]} 27. Rxd4 {[%clk 0:01:36.8]} 27... Be8 {[%clk 0:01:47.1]}
28. h4 {[%clk 0:01:29.6]} 28... Qc7 {[%clk 0:01:37.1]} 29. h5 {[%clk 0:01:15.4]}
29... Nxe5 {[%clk 0:01:20.8]} 30. Ng4 {[%clk 0:01:15.3]} 30... f6 {[%clk
0:01:19.6]} 31. Nxf6+ {[%clk 0:01:14.9]} 31... Kh8 {[%clk 0:01:12.4]} 32. Ng4
{[%clk 0:01:14.6]} 32... Nf3+ {[%clk 0:01:05.8]} 33. gxf3 {[%clk 0:01:10]} 33...
Bxh5 {[%clk 0:01:05.5]} 34. Qxc7 {[%clk 0:01:09.7]} 1-0